fUST/lending_fUST_20240226
["ID","MTS","AMOUNT","RATE_DAILY","PERIOD"]
[315196264,1708924242449,-500.0,0.00019452,2]
[315196265,1708924242458,-500.0,0.00019452,2]
[315196266,1708924242466,-500.0,0.00019452,2]
[315196267,1708924242475,-310.21411182,0.00019452,2]
[315196268,1708924242484,-502.20415089,0.00019452,2]
[315196269,1708924242493,-500.0,0.00019452,2]
[315196270,1708924242502,-500.0,0.00019452,2]
[315196271,1708924242511,-640.94855837,0.00019452,2]
[315196272,1708924242520,-500.0,0.00019452,2]
[315196273,1708924242531,-500.0,0.00019452,2]
[315196274,1708924242540,-500.0,0.00019452,2]
[315196275,1708924242549,-625.28,0.00019452,2]
[315196276,1708924242559,-502.89262175,0.00019452,2]
[315196277,1708924242568,-500.73988973,0.00019452,2]
[315196278,1708924242578,-500.0,0.00019452,2]
[315196280,1708924242587,-500.0,0.00019452,2]
[315196281,1708924242596,-497.00174819,0.00019452,2]
[315196283,1708924242606,-501.23926151,0.00019452,2]
[315196284,1708924242616,-500.0,0.00019452,2]
[315196285,1708924242628,-500.74176148,0.00019452,2]
[315196286,1708924242638,-500.0,0.00019452,2]
[315196287,1708924242648,-588.75636197,0.00019452,2]
[315196289,1708924242658,-500.0,0.00019452,2]
[315196290,1708924242668,-500.0,0.00019452,2]
[315196291,1708924242678,-500.0,0.00019452,2]
[315196292,1708924242689,-500.0,0.00019452,2]
[315196293,1708924242701,-292.15226253,0.00019452,2]
[315196294,1708924242713,-500.0,0.00019452,2]
[315196296,1708924242722,-500.0,0.00019452,2]
[315196297,1708924242732,-500.0,0.00019452,2]
[315196298,1708924242741,-414.96663376,0.00019452,2]
[315196299,1708924242753,-500.0,0.00019452,2]
[315196300,1708924242762,-500.0,0.00019452,2]
[315196301,1708924242771,-500.0,0.00019452,2]
[315196302,1708924242783,-500.0,0.00019452,2]
[315196303,1708924242792,-500.0,0.00019452,2]
[315196304,1708924242802,-500.0,0.00019452,2]
[315196305,1708924242812,-2297.51,0.00019452,2]
[315196306,1708924242822,-500.63508727,0.00019452,2]
[315196307,1708924242832,-500.0,0.00019452,2]
[315196308,1708924242843,-500.0,0.00019452,2]
[315196309,1708924242852,-500.0,0.00019452,2]
[315196310,1708924242861,-631.67993521,0.00019452,2]
[315196311,1708924242870,-500.0,0.00019452,2]
[315196312,1708924242882,-501.17320826,0.00019452,2]
[315196313,1708924242890,-501.11194188,0.00019452,2]
[315196314,1708924242899,-500.0,0.00019452,2]
[315196315,1708924242909,-1783.95,0.00019452,2]
[315196316,1708924242918,-500.0,0.00019452,2]
[315196317,1708924242927,-500.0,0.00019452,2]
[315196318,1708924242936,-500.0,0.00019452,2]
[315196319,1708924242945,-500.0,0.00019452,2]
[315196320,1708924242955,-500.0,0.00019452,2]
[315196321,1708924242964,-421.15243757,0.00019452,2]
[315196322,1708924242973,-500.0,0.00019452,2]
[315196323,1708924242983,-500.0,0.00019452,2]
[315196324,1708924242992,-587.29506689,0.00019452,2]
[315196325,1708924243001,-500.0,0.00019452,2]
[315196326,1708924243010,-500.0,0.00019452,2]
[315196327,1708924243019,-500.0,0.00019452,2]
[315196328,1708924243029,-500.0,0.00019452,2]
[315196329,1708924243038,-500.0,0.00019452,2]
[315196330,1708924243047,-312.51592479,0.00019452,2]
[315196331,1708924243056,-500.0,0.00019452,2]
[315196332,1708924243065,-500.0,0.00019452,2]
[315196333,1708924243074,-500.0,0.00019452,2]
[315196334,1708924243083,-500.0,0.00019452,2]
[315196335,1708924243093,-500.0,0.00019452,2]
[315196336,1708924243102,-500.0,0.00019452,2]
[315196337,1708924243111,-1039.45,0.00019452,2]
[315196338,1708924243121,-151.0,0.00019452,2]
[315196339,1708924243131,-500.0,0.00019452,2]
[315196340,1708924243141,-500.0,0.00019452,2]
[315196341,1708924243150,-500.0,0.00019452,2]
[315196342,1708924243160,-544.80572393,0.00019452,2]
[315196343,1708924243262,-500.0,0.00019452,2]
[315196344,1708924243271,-500.0,0.00019452,2]
[315196345,1708924243281,-500.0,0.00019452,2]
[315196346,1708924243290,-500.0,0.00019452,2]
[315196347,1708924243299,-774.92,0.00019452,2]
[315196348,1708924243308,-249.09722205,0.00019452,2]
[315196349,1708924243317,-500.0,0.00019452,2]
[315196350,1708924243326,-500.0,0.00019452,2]
[315196351,1708924243335,-500.0,0.00019452,2]
[315196352,1708924243345,-1528.2,0.00019452,2]
[315196353,1708924243354,-500.0,0.00019452,2]
[315196354,1708924243362,-500.0,0.00019452,2]
[315196355,1708924243371,-501.30905286,0.00019452,2]
[315196356,1708924243381,-11388.11,0.00019452,2]
[315196357,1708924243390,-500.0,0.00019452,2]
[315196358,1708924243399,-500.0,0.00019452,2]
[315196359,1708924243407,-502.09355324,0.00019452,2]
[315196360,1708924243416,-1662.0,0.00019452,2]
[315196361,1708924243425,-500.0,0.00019452,2]
[315196362,1708924243434,-4350.42,0.00019452,2]
[315196363,1708924243443,-500.0,0.00019452,2]
[315196364,1708924243452,-3002.04,0.00019452,2]
[315196365,1708924243462,-827.43,0.00019452,2]
[315196366,1708924243471,-500.0,0.00019452,2]
[315196367,1708924243480,-500.0,0.00019452,2]
[315196368,1708924243489,-884.96,0.00019452,2]
[315196369,1708924243498,-500.0,0.00019452,2]
[315196370,1708924243507,-500.0,0.00019452,2]
[315196371,1708924243517,-2818.62,0.00019452,2]
[315196372,1708924243526,-500.0,0.00019452,2]
[315196373,1708924243535,-2095.24,0.00019452,2]
[315196374,1708924243545,-212.2436076,0.00019452,2]
[315196375,1708924243555,-500.0,0.00019452,2]
[315196376,1708924243563,-1000.0,0.00019452,2]
[315196377,1708924243572,-500.0,0.00019452,2]
[315196378,1708924243582,-500.0,0.00019452,2]
[315196379,1708924243591,-500.0,0.00019452,2]
[315196380,1708924243601,-500.0,0.00019452,2]
[315196381,1708924243611,-500.0,0.00019452,2]
[315196382,1708924243620,-2280.26,0.00019452,2]
[315196383,1708924243630,-508.76,0.00019452,2]
[315196384,1708924243639,-500.0,0.00019452,2]
[315196385,1708924243648,-500.0,0.00019452,2]
[315196386,1708924243658,-500.0,0.00019452,2]
[315196387,1708924243668,-2134.82,0.00019452,2]
[315196388,1708924243677,-500.0,0.00019452,2]
[315196389,1708924243687,-500.0,0.00019452,2]
[315196390,1708924243696,-500.0,0.00019452,2]
[315196391,1708924243708,-500.0,0.00019452,2]
[315196392,1708924243717,-500.0,0.00019452,2]
[315196393,1708924243727,-500.0,0.00019452,2]
[315196394,1708924243736,-500.0,0.00019452,2]
[315196395,1708924243746,-500.0,0.00019452,2]
[315196396,1708924243755,-1005.8616059,0.00019452,2]
[315196397,1708924243765,-500.0,0.00019452,2]
[315196398,1708924243774,-470.37536287,0.00019452,2]
[315196400,1708924243784,-500.0,0.00019452,2]
[315196402,1708924243794,-501.91998645,0.00019452,2]
[315196403,1708924243804,-500.0,0.00019452,2]
[315196404,1708924243813,-500.0,0.00019452,2]
[315196405,1708924243822,-23200.88,0.00019452,2]
[315196406,1708924243832,-500.0,0.00019452,2]
[315196407,1708924243841,-500.0,0.00019452,2]
[315196408,1708924243850,-500.87195388,0.00019452,2]
[315196409,1708924243859,-500.0,0.00019452,2]
[315196410,1708924243869,-509.9265336,0.00019452,2]
[315196411,1708924243879,-500.0,0.00019452,2]
[315196412,1708924243888,-500.0,0.00019452,2]
[315196414,1708924243897,-1777.55,0.00019452,2]
[315196416,1708924243906,-500.0,0.00019452,2]
[315196417,1708924243915,-500.0,0.00019452,2]
[315196418,1708924243924,-643.03,0.00019452,2]
[315196419,1708924243933,-2316.66,0.00019452,2]
[315196420,1708924243942,-500.0,0.00019452,2]
[315196421,1708924243952,-500.0,0.00019452,2]
[315196422,1708924243961,-8228.19,0.00019452,2]
[315196423,1708924243970,-500.0,0.00019452,2]
[315196424,1708924243979,-500.0,0.00019452,2]
[315196425,1708924243988,-500.0,0.00019452,2]
[315196426,1708924243997,-500.0,0.00019452,2]
[315196427,1708924244007,-500.0,0.00019452,2]
[315196428,1708924244016,-500.0,0.00019452,2]
[315196429,1708924244025,-500.0,0.00019452,2]
[315196430,1708924244034,-500.0,0.00019452,2]
[315196431,1708924244043,-500.0,0.00019452,2]
[315196432,1708924244052,-3490.18,0.00019452,2]
[315196433,1708924244061,-838.64,0.00019452,2]
[315196434,1708924244071,-3075.6,0.00019452,2]
[315196435,1708924244080,-4538.35,0.00019452,2]
[315196436,1708924244089,-500.0,0.00019452,2]
[315196437,1708924244099,-1541.61,0.00019452,2]
[315196438,1708924244108,-2509.56,0.00019452,2]
[315196439,1708924244117,-500.0,0.00019452,2]
[315196440,1708924244126,-500.0,0.00019452,2]
[315196441,1708924244136,-500.0,0.00019452,2]
[315196442,1708924244145,-500.0,0.00019452,2]
[315196443,1708924244154,-500.0,0.00019452,2]
[315196444,1708924244163,-3179.94,0.00019452,2]
[315196445,1708924244173,-22919.48,0.00019452,2]
[315196446,1708924244181,-1651.22,0.00019452,2]
[315196447,1708924244190,-640.38620748,0.00019452,2]
[315196448,1708924244199,-500.0,0.00019452,2]
[315196449,1708924244208,-1269.93,0.00019452,2]
[315196450,1708924244217,-500.0,0.00019452,2]
[315196451,1708924244226,-755.31,0.00019452,2]
[315196452,1708924244235,-500.0,0.00019452,2]
[315196453,1708924244244,-2267.83,0.00019452,2]
[315196454,1708924244253,-500.0,0.00019452,2]
[315196455,1708924244262,-500.0,0.00019452,2]
[315196456,1708924244271,-500.0,0.00019452,2]
[315196457,1708924244282,-7330.41372259,0.00019474,2]
[315196458,1708924244291,-182.85476532,0.00019477,2]
[315196459,1708924244300,-7330.41372259,0.00019478,2]
[315196460,1708924244309,-182.85476532,0.00019478,2]
[315196461,1708924244318,-182.85476532,0.00019484,2]
[315196462,1708924244327,-7330.41372259,0.00019493,2]
[315196463,1708924244336,-3232.05010345,0.00019626,2]
[315196464,1708924244346,-166.666666,0.00019627,2]
[315196465,1708924244355,-5529.96122929,0.000197,2]
[315196466,1708924244364,-5529.96122929,0.000197,2]
[315196467,1708924244373,-5529.96122929,0.000197,2]
[315196468,1708924244383,-153.0,0.000197,2]
[315196469,1708924244392,-153.0,0.000197,2]
[315196470,1708924244402,-153.0,0.000197,2]
[315196471,1708924244411,-153.0,0.000197,2]
[315196472,1708924244421,-306.0,0.000197,2]
[315196473,1708924244430,-592.7,0.00019725,2]
[315196474,1708924244439,-592.7,0.00019725,2]
[315196475,1708924244449,-592.7,0.00019725,2]
[315196476,1708924244459,-592.7,0.00019725,2]
[315196477,1708924244468,-500.0,0.00019726,2]
[315196478,1708924244477,-619.10188517,0.00019726,2]
[315196479,1708924244487,-500.0,0.00019726,2]
[315196480,1708924244496,-500.0,0.00019726,2]
[315196481,1708924244506,-500.0,0.00019726,2]
[315196482,1708924244515,-500.0,0.00019726,2]
[315196483,1708924244524,-500.0,0.00019726,2]
[315196484,1708924244533,-500.0,0.00019726,2]
[315196485,1708924244542,-1356.05,0.00019726,2]
[315196486,1708924244551,-501.43554536,0.00019726,2]
[315196487,1708924244560,-500.0,0.00019726,2]
[315196488,1708924244569,-500.0,0.00019726,2]
[315196489,1708924244578,-503.07483176,0.00019726,2]
[315196490,1708924244586,-500.0,0.00019726,2]
[315196491,1708924244595,-500.0,0.00019726,2]
[315196492,1708924244604,-500.0,0.00019726,2]
[315196493,1708924244613,-537.78828309,0.00019726,2]
[315196494,1708924244623,-233.39371424,0.00019726,2]
[315196495,1708924244634,-500.0,0.00019726,2]
[315196496,1708924244644,-500.0,0.00019726,2]
[315196497,1708924244653,-500.0,0.00019726,2]
[315196498,1708924244663,-500.0,0.00019726,2]
[315196499,1708924244672,-500.0,0.00019726,2]
[315196500,1708924244681,-405.80118565,0.00019726,2]
[315196501,1708924244692,-500.77094281,0.00019726,2]
[315196502,1708924244702,-500.0,0.00019726,2]
[315196503,1708924244712,-501.82744386,0.00019726,2]
[315196504,1708924244722,-503.89798039,0.00019726,2]
[315196505,1708924244731,-1774.16,0.00019726,2]
[315196506,1708924244741,-501.61886765,0.00019726,2]
[315196507,1708924244751,-501.22568197,0.00019726,2]
[315196508,1708924244762,-773.14,0.00019726,2]
[315196509,1708924244772,-500.0,0.00019726,2]
[315196510,1708924244782,-500.0,0.00019726,2]
[315196511,1708924244792,-500.0,0.00019726,2]
[315196512,1708924244802,-500.0,0.00019726,2]
[315196513,1708924244811,-502.59254661,0.00019726,2]
[315196514,1708924244821,-625.55,0.00019726,2]
[315196515,1708924244830,-500.0,0.00019726,2]
[315196516,1708924244839,-504.63239658,0.00019726,2]
[315196517,1708924244849,-504.21335184,0.00019726,2]
[315196518,1708924244859,-390.70436853,0.00019726,2]
[315196519,1708924244867,-500.0,0.00019726,2]
[315196520,1708924244877,-500.0,0.00019726,2]
[315196521,1708924244888,-500.0,0.00019726,2]
[315196522,1708924244897,-500.0,0.00019726,2]
[315196523,1708924244906,-500.0,0.00019726,2]
[315196524,1708924244915,-500.0,0.00019726,2]
[315196525,1708924244925,-625.28,0.00019726,2]
[315196526,1708924244934,-502.0457706,0.00019726,2]
[315196527,1708924244943,-500.0,0.00019726,2]
[315196528,1708924244953,-500.0,0.00019726,2]
[315196529,1708924244962,-500.0,0.00019726,2]
[315196530,1708924244971,-500.0,0.00019726,2]
[315196531,1708924244980,-500.0,0.00019726,2]
[315196532,1708924244990,-502.06092799,0.00019726,2]
[315196533,1708924244999,-501.98549869,0.00019726,2]
[315196534,1708924245008,-503.24638074,0.00019726,2]
[315196535,1708924245017,-500.0,0.00019726,2]
[315196536,1708924245026,-500.89874379,0.00019726,2]
[315196537,1708924245035,-581.01,0.00019726,2]
[315196538,1708924245044,-500.0,0.00019726,2]
[315196539,1708924245053,-500.79176669,0.00019726,2]
[315196540,1708924245062,-500.0,0.00019726,2]
[315196541,1708924245071,-500.0,0.00019726,2]
[315196542,1708924245079,-500.94944783,0.00019726,2]
[315196543,1708924245088,-2297.51,0.00019726,2]
[315196544,1708924245097,-501.23396073,0.00019726,2]
[315196545,1708924245106,-501.76089687,0.00019726,2]
[315196546,1708924245116,-501.16377799,0.00019726,2]
[315196547,1708924245125,-500.0,0.00019726,2]
[315196548,1708924245135,-336.17917651,0.00019726,2]
[315196549,1708924245144,-1783.95,0.00019726,2]
[315196550,1708924245154,-500.0,0.00019726,2]
[315196551,1708924245163,-500.0,0.00019726,2]
[315196552,1708924245173,-209.81817441,0.00019726,2]
[315196553,1708924245182,-500.0,0.00019726,2]
[315196554,1708924245191,-500.0,0.00019726,2]
[315196555,1708924245200,-500.0,0.00019726,2]
[315196556,1708924245209,-500.0,0.00019726,2]
[315196557,1708924245218,-500.0,0.00019726,2]
[315196558,1708924245227,-500.0,0.00019726,2]
[315196559,1708924245236,-500.0,0.00019726,2]
[315196560,1708924245245,-500.0,0.00019726,2]
[315196561,1708924245254,-500.0,0.00019726,2]
[315196562,1708924245263,-500.0,0.00019726,2]
[315196563,1708924245272,-500.0,0.00019726,2]
[315196564,1708924245364,-1813.61263,0.00019726,2]
[315196565,1708924245373,-500.0,0.00019726,2]
[315196566,1708924245383,-500.0,0.00019726,2]
[315196567,1708924245393,-1813.61263,0.00019726,2]
[315196568,1708924245402,-1039.45,0.00019726,2]
[315196569,1708924245411,-500.0,0.00019726,2]
[315196570,1708924245420,-500.0,0.00019726,2]
[315196572,1708924245429,-500.0,0.00019726,2]
[315196573,1708924245438,-500.0,0.00019726,2]
[315196574,1708924245447,-500.0,0.00019726,2]
[315196575,1708924245456,-500.0,0.00019726,2]
[315196576,1708924245465,-774.92,0.00019726,2]
[315196577,1708924245474,-500.85128667,0.00019726,2]
[315196578,1708924245483,-500.0,0.00019726,2]
[315196579,1708924245492,-500.0,0.00019726,2]
[315196580,1708924245501,-1528.2,0.00019726,2]
[315196581,1708924245511,-500.0,0.00019726,2]
[315196582,1708924245520,-500.0,0.00019726,2]
[315196583,1708924245530,-11388.11,0.00019726,2]
[315196584,1708924245539,-500.0,0.00019726,2]
[315196585,1708924245549,-500.0,0.00019726,2]
[315196586,1708924245559,-1662.0,0.00019726,2]
[315196587,1708924245569,-500.0,0.00019726,2]
[315196588,1708924245578,-4350.42,0.00019726,2]
[315196589,1708924245588,-500.0,0.00019726,2]
[315196590,1708924245596,-3002.04,0.00019726,2]
[315196591,1708924245606,-827.43,0.00019726,2]
[315196592,1708924245615,-500.0,0.00019726,2]
[315196593,1708924245624,-500.0,0.00019726,2]
[315196595,1708924245635,-884.96,0.00019726,2]
[315196596,1708924245645,-500.0,0.00019726,2]
[315196599,1708924245654,-487.01483259,0.00019726,2]
[315196600,1708924245665,-2818.62,0.00019726,2]
[315196602,1708924245674,-500.0,0.00019726,2]
[315196604,1708924245683,-2095.24,0.00019726,2]
[315196606,1708924245696,-500.0,0.00019726,2]
[315196608,1708924245706,-1000.0,0.00019726,2]
[315196610,1708924245715,-500.0,0.00019726,2]
[315196612,1708924245724,-249.10033961,0.00019726,2]
[315196614,1708924245734,-442.24473459,0.00019726,2]
[315196616,1708924245743,-500.0,0.00019726,2]
[315196618,1708924245752,-500.0,0.00019726,2]
[315196620,1708924245762,-2280.26,0.00019726,2]
[315196622,1708924245773,-508.76,0.00019726,2]
[315196624,1708924245782,-500.0,0.00019726,2]
[315196626,1708924245791,-500.0,0.00019726,2]
[315196628,1708924245801,-500.0,0.00019726,2]
[315196630,1708924245810,-2134.82,0.00019726,2]
[315196632,1708924245819,-500.0,0.00019726,2]
[315196634,1708924245829,-500.81546176,0.00019726,2]
[315196636,1708924245838,-500.0,0.00019726,2]
[315196638,1708924245847,-500.0,0.00019726,2]
[315196640,1708924245857,-500.0,0.00019726,2]
[315196641,1708924245866,-500.0,0.00019726,2]
[315196642,1708924245875,-500.0,0.00019726,2]
[315196643,1708924245885,-292.12335644,0.00019726,2]
[315196644,1708924245895,-500.0,0.00019726,2]
[315196645,1708924245904,-500.0,0.00019726,2]
[315196646,1708924245913,-500.0,0.00019726,2]
[315196647,1708924245922,-500.0,0.00019726,2]
[315196648,1708924245931,-23200.88,0.00019726,2]
[315196649,1708924245941,-436.52101816,0.00019726,2]
[315196650,1708924245950,-505.00833293,0.00019726,2]
[315196651,1708924245960,-503.26279382,0.00019726,2]
[315196652,1708924245969,-500.0,0.00019726,2]
[315196653,1708924245979,-507.00886275,0.00019726,2]
[315196654,1708924245988,-1777.55,0.00019726,2]
[315196655,1708924245998,-501.43459561,0.00019726,2]
[315196656,1708924246007,-501.78402,0.00019726,2]
[315196657,1708924246016,-643.03,0.00019726,2]
[315196658,1708924246025,-2316.66,0.00019726,2]
[315196659,1708924246034,-500.0,0.00019726,2]
[315196660,1708924246043,-500.0,0.00019726,2]
[315196661,1708924246052,-8228.19,0.00019726,2]
[315196662,1708924246061,-500.0,0.00019726,2]
[315196663,1708924246070,-500.0,0.00019726,2]
[315196664,1708924246079,-500.0,0.00019726,2]
[315196665,1708924246088,-500.0,0.00019726,2]
[315196666,1708924246097,-500.0,0.00019726,2]
[315196667,1708924246106,-500.0,0.00019726,2]
[315196668,1708924246114,-500.0,0.00019726,2]
[315196669,1708924246123,-500.0,0.00019726,2]
[315196670,1708924246133,-3490.18,0.00019726,2]
[315196671,1708924246142,-838.64,0.00019726,2]
[315196672,1708924246152,-3075.6,0.00019726,2]
[315196673,1708924246161,-4538.35,0.00019726,2]
[315196674,1708924246170,-151.0,0.00019726,2]
[315196675,1708924246179,-478.11316382,0.00019726,2]
[315196676,1708924246188,-151.0,0.00019726,2]
[315196677,1708924246197,-1541.61,0.00019726,2]
[315196678,1708924246207,-151.0,0.00019726,2]
[315196679,1708924246217,-2509.56,0.00019726,2]
[315196680,1708924246226,-502.36151926,0.00019726,2]
[315196681,1708924246235,-500.0,0.00019726,2]
[315196682,1708924246244,-500.0,0.00019726,2]
[315196683,1708924246253,-3179.94,0.00019726,2]
[315196684,1708924246262,-22919.48,0.00019726,2]
[315196685,1708924246271,-1651.22,0.00019726,2]
[315196686,1708924246280,-500.0,0.00019726,2]
[315196687,1708924246290,-1269.93,0.00019726,2]
[315196688,1708924246298,-500.0,0.00019726,2]
[315196689,1708924246307,-755.31,0.00019726,2]
[315196690,1708924246316,-2267.83,0.00019726,2]
[315196691,1708924246325,-500.0,0.00019726,2]
[315196692,1708924246334,-500.0,0.00019726,2]
[315196693,1708924246343,-151.0,0.00019969,2]
[315196694,1708924246353,-156.352017,0.00019969,2]
[315196695,1708924246362,-8230.24916882,0.00019969,2]
[315196696,1708924246372,-592.7,0.00019972,2]
[315196697,1708924246382,-5337.30879984,0.00019973,2]
[315196698,1708924246679,-4698.57354043,0.00019973,2]
[315196699,1708924246688,-620.31196532,0.00019973,2]
[315196700,1708924246698,-589.16564622,0.00019978,2]
[315196701,1708924246710,-592.7,0.00019999,2]
[315196702,1708924246719,-592.7,0.00019999,2]
[315196703,1708924246728,-592.7,0.00019999,2]
[315196704,1708924246739,-592.7,0.00019999,2]
[315196705,1708924246748,-175.5,0.0002,2]
[315196706,1708924246757,-500.0,0.0002,2]
[315196707,1708924246766,-500.0,0.0002,2]
[315196708,1708924246776,-500.0,0.0002,2]
[315196709,1708924246785,-500.0,0.0002,2]
[315196710,1708924246796,-500.0,0.0002,2]
[315196711,1708924246805,-500.0,0.0002,2]
[315196712,1708924246814,-500.0,0.0002,2]
[315196713,1708924246823,-1356.05,0.0002,2]
[315196714,1708924246833,-500.0,0.0002,2]
[315196715,1708924246842,-500.0,0.0002,2]
[315196716,1708924246851,-500.0,0.0002,2]
[315196717,1708924246859,-151.0,0.0002,2]
[315196718,1708924246869,-500.0,0.0002,2]
[315196719,1708924246878,-500.0,0.0002,2]
[315196720,1708924246887,-500.0,0.0002,2]
[315196721,1708924246896,-500.0,0.0002,2]
[315196722,1708924246906,-500.0,0.0002,2]
[315196723,1708924246915,-1774.16,0.0002,2]
[315196724,1708924246924,-773.14,0.0002,2]
[315196725,1708924246934,-503.92602803,0.0002,2]
[315196726,1708924246943,-500.0,0.0002,2]
[315196727,1708924246952,-500.0,0.0002,2]
[315196728,1708924246961,-440.90678372,0.0002,2]
[315196729,1708924246971,-277.484245,0.0002,2]
[315196730,1708924246980,-277.484245,0.0002,2]
[315196731,1708924246989,-625.55,0.0002,2]
[315196732,1708924246998,-500.0,0.0002,2]
[315196733,1708924247007,-501.25122817,0.0002,2]
[315196734,1708924247016,-500.0,0.0002,2]
[315196735,1708924247026,-500.0,0.0002,2]
[315196736,1708924247035,-503.84063376,0.0002,2]
[315196737,1708924247044,-505.19240896,0.0002,2]
[315196738,1708924247053,-500.0,0.0002,2]
[315196739,1708924247062,-151.0,0.0002,2]
[315196740,1708924247071,-625.28,0.0002,2]
[315196741,1708924247080,-500.0,0.0002,2]
[315196742,1708924247089,-500.0,0.0002,2]
[315196743,1708924247098,-500.0,0.0002,2]
[315196744,1708924247107,-218.21102061,0.0002,2]
[315196745,1708924247116,-500.0,0.0002,2]
[315196746,1708924247209,-503.35756395,0.0002,2]
[315196747,1708924247218,-502.78919013,0.0002,2]
[315196748,1708924247227,-500.0,0.0002,2]
[315196749,1708924247235,-2297.51,0.0002,2]
[315196750,1708924247244,-502.13232332,0.0002,2]
[315196751,1708924247253,-1783.95,0.0002,2]
[315196752,1708924247262,-500.0,0.0002,2]
[315196753,1708924247271,-500.0,0.0002,2]
[315196754,1708924247281,-501.11759681,0.0002,2]
[315196755,1708924247290,-500.0,0.0002,2]
[315196756,1708924247299,-500.0,0.0002,2]
[315196757,1708924247308,-500.0,0.0002,2]
[315196758,1708924247317,-500.0,0.0002,2]
[315196759,1708924247326,-565.91942738,0.0002,2]
[315196760,1708924247334,-500.0,0.0002,2]
[315196761,1708924247344,-500.0,0.0002,2]
[315196762,1708924247353,-1813.61263,0.0002,2]
[315196763,1708924247361,-500.0,0.0002,2]
[315196764,1708924247370,-1813.61263,0.0002,2]
[315196765,1708924247379,-1039.45,0.0002,2]
[315196766,1708924247388,-500.0,0.0002,2]
[315196767,1708924247398,-500.0,0.0002,2]
[315196768,1708924247407,-500.0,0.0002,2]
[315196769,1708924247416,-410.68175763,0.0002,2]
[315196770,1708924247425,-500.0,0.0002,2]
[315196771,1708924247433,-502.25263144,0.0002,2]
[315196772,1708924247443,-774.92,0.0002,2]
[315196773,1708924247452,-500.0,0.0002,2]
[315196774,1708924247461,-500.0,0.0002,2]
[315196775,1708924247470,-1528.2,0.0002,2]
[315196776,1708924247478,-500.0,0.0002,2]
[315196777,1708924247487,-500.0,0.0002,2]
[315196778,1708924247496,-11388.11,0.0002,2]
[315196779,1708924247506,-500.0,0.0002,2]
[315196780,1708924247515,-500.0,0.0002,2]
[315196781,1708924247524,-1662.0,0.0002,2]
[315196782,1708924247533,-500.0,0.0002,2]
[315196783,1708924247542,-4350.42,0.0002,2]
[315196784,1708924247550,-502.17659617,0.0002,2]
[315196785,1708924247559,-3002.04,0.0002,2]
[315196786,1708924247569,-827.43,0.0002,2]
[315196787,1708924247578,-503.73759434,0.0002,2]
[315196788,1708924247587,-500.0,0.0002,2]
[315196789,1708924247597,-884.96,0.0002,2]
[315196790,1708924247606,-2818.62,0.0002,2]
[315196791,1708924247615,-500.0,0.0002,2]
[315196792,1708924247625,-2095.24,0.0002,2]
[315196793,1708924247635,-500.0,0.0002,2]
[315196794,1708924247644,-1000.0,0.0002,2]
[315196795,1708924247654,-500.0,0.0002,2]